fUST/lending_fUST_20260113
["ID","MTS","AMOUNT","RATE_DAILY","PERIOD"]
[401486798,1768263040726,-500.0,0.00013699,2]
[401486799,1768263040735,-298.79354709,0.00013699,2]
[401486800,1768263040745,-500.0,0.00013699,2]
[401486801,1768263040755,-500.0,0.00013699,2]
[401486802,1768263040764,-500.0,0.00013699,2]
[401486803,1768263040773,-500.0,0.00013699,2]
[401486804,1768263040783,-500.0,0.00013699,2]
[401486805,1768263040792,-610.75742393,0.00013699,2]
[401486806,1768263040802,-500.0,0.00013699,2]
[401486807,1768263040812,-500.0,0.00013699,2]
[401486808,1768263040821,-500.0,0.00013699,2]
[401486809,1768263040830,-500.0,0.00013699,2]
[401486810,1768263040840,-500.0,0.00013699,2]
[401486811,1768263040849,-500.0,0.00013699,2]
[401486812,1768263040858,-500.0,0.00013699,2]
[401486813,1768263040868,-500.0,0.00013699,2]
[401486814,1768263040877,-500.0,0.00013699,2]
[401486815,1768263040886,-500.0,0.00013699,2]
[401486816,1768263040896,-500.0,0.00013699,2]
[401486817,1768263040907,-500.0,0.00013699,2]
[401486818,1768263040916,-500.0,0.00013699,2]
[401486819,1768263040926,-500.0,0.00013699,2]
[401486820,1768263040936,-500.0,0.00013699,2]
[401486821,1768263040945,-500.0,0.00013699,2]
[401486822,1768263040954,-500.0,0.00013699,2]
[401486823,1768263040964,-500.0,0.00013699,2]
[401486824,1768263040973,-500.0,0.00013699,2]
[401486825,1768263040983,-500.0,0.00013699,2]
[401486826,1768263040993,-500.0,0.00013699,2]
[401486827,1768263041005,-612.0897626,0.00013699,2]
[401486828,1768263041014,-500.0,0.00013699,2]
[401486829,1768263041023,-227.11320444,0.00013699,2]
[401486830,1768263041031,-502.65928848,0.00013699,2]
[401486831,1768263041040,-500.0,0.00013699,2]
[401486832,1768263041050,-500.0,0.00013699,2]
[401486833,1768263041059,-441.99834149,0.00013699,2]
[401486834,1768263041068,-500.28128039,0.00013699,2]
[401486835,1768263041078,-500.0,0.00013699,2]
[401486836,1768263041088,-500.0,0.00013699,2]
[401486837,1768263041098,-500.0,0.00013699,2]
[401486838,1768263041107,-500.0,0.00013699,2]
[401486839,1768263041117,-461.16799506,0.00013699,2]
[401486840,1768263041126,-500.0,0.00013699,2]
[401486841,1768263041136,-500.0,0.00013699,2]
[401486842,1768263041145,-500.0,0.00013699,2]
[401486843,1768263041156,-500.0,0.00013699,2]
[401486844,1768263041166,-500.0,0.00013699,2]
[401486845,1768263041176,-500.0,0.00013699,2]
[401486846,1768263041185,-313.20652716,0.00013699,2]
[401486847,1768263041195,-159.64533136,0.00013699,2]
[401486848,1768263041204,-366.95119537,0.00013699,2]
[401486849,1768263041214,-500.0,0.00013699,2]
[401486850,1768263041224,-500.0,0.00013699,2]
[401486851,1768263041233,-500.0,0.00013699,2]
[401486852,1768263041243,-500.0,0.00013699,2]
[401486853,1768263041252,-500.0,0.00013699,2]
[401486854,1768263041261,-500.0,0.00013699,2]
[401486855,1768263041271,-500.0,0.00013699,2]
[401486856,1768263041280,-500.0,0.00013699,2]
[401486857,1768263041289,-501.55614282,0.00013699,2]
[401486858,1768263041298,-500.0,0.00013699,2]
[401486859,1768263041307,-500.0,0.00013699,2]
[401486860,1768263041316,-500.0,0.00013699,2]
[401486861,1768263041326,-296.07308979,0.00013699,2]
[401486862,1768263041335,-500.0,0.00013699,2]
[401486863,1768263041348,-500.0,0.00013699,2]
[401486864,1768263041357,-500.0,0.00013699,2]
[401486865,1768263041367,-1000.0,0.00013821,2]
[401486866,1768263041377,-1000.0,0.00013821,2]
[401486867,1768263041387,-923.32811707,0.00013821,2]
[401486868,1768263041397,-1000.80134157,0.00013821,2]
[401486869,1768263041406,-901.64301006,0.00013821,2]
[401486870,1768263041417,-1000.0,0.00013821,2]
[401486871,1768263041427,-1000.0,0.00013821,2]
[401486872,1768263041436,-1000.0,0.00013821,2]
[401486873,1768263041446,-1000.0,0.00013821,2]
[401486874,1768263041455,-1000.0,0.00013821,2]
[401486875,1768263041464,-1000.0,0.00013821,2]
[401486876,1768263041474,-1000.0,0.00013821,2]
[401486877,1768263041483,-1000.0,0.00013821,2]
[401486878,1768263041492,-1000.0,0.00013821,2]
[401486879,1768263041501,-500.0,0.00013821,2]
[401486880,1768263041510,-1000.0,0.00013821,2]
[401486881,1768263041520,-798.59280651,0.00013821,2]
[401486882,1768263041529,-1000.0,0.00013821,2]
[401486883,1768263041538,-1000.0,0.00013821,2]
[401486884,1768263041547,-1000.0,0.00013821,2]
[401486885,1768263041557,-1000.0,0.00013821,2]
[401486886,1768263041567,-1000.0,0.00013821,2]
[401486887,1768263041576,-1000.0,0.00013821,2]
[401486888,1768263041585,-1000.0,0.00013821,2]
[401486889,1768263041594,-1000.0,0.00013821,2]
[401486890,1768263041602,-958.38483251,0.00013821,2]
[401486891,1768263041610,-1000.0,0.00013821,2]
[401486892,1768263041619,-1000.0,0.00013821,2]
[401486893,1768263041627,-1000.0,0.00013821,2]
[401486894,1768263041636,-1000.0,0.00013821,2]
[401486895,1768263041645,-1000.0,0.00013821,2]
[401486896,1768263041656,-332.40668052,0.00013821,2]
[401486897,1768263041665,-1000.0,0.00013821,2]
[401486898,1768263041674,-1000.0,0.00013821,2]
[401486899,1768263041683,-1000.0,0.00013821,2]
[401486900,1768263041692,-1000.0,0.00013821,2]
[401486901,1768263041701,-680.33880903,0.00013821,2]
[401486902,1768263041710,-1000.0,0.00013821,2]
[401486903,1768263041720,-294.20360383,0.00013973,2]
[401486904,1768263041729,-720.0,0.00013985,2]
[401486905,1768263041739,-1017.77857831,0.00014247,2]
[401486906,1768263041748,-501.52224721,0.00014247,2]
[401486907,1768263041757,-1000.0,0.00014247,2]
[401486908,1768263041766,-1000.0,0.00014247,2]
[401486909,1768263041775,-1000.0,0.00014247,2]
[401486910,1768263041784,-1000.0,0.00014247,2]
[401486911,1768263041794,-1000.0,0.00014247,2]
[401486912,1768263041803,-999.83703447,0.00014247,2]
[401486913,1768263041812,-1000.0,0.00014247,2]
[401486914,1768263041821,-1000.0,0.00014247,2]
[401486915,1768263041831,-1000.0,0.00014247,2]
[401486916,1768263041840,-500.93038909,0.00014247,2]
[401486917,1768263041849,-581.34216933,0.00014247,2]
[401486918,1768263041858,-1000.0,0.00014247,2]
[401486919,1768263041867,-353.02410941,0.00014247,2]
[401486920,1768263041877,-1000.512985,0.00014247,2]
[401486921,1768263041886,-1000.0,0.00014247,2]
[401486922,1768263041895,-1000.0,0.00014247,2]
[401486923,1768263041904,-875.76793412,0.00014247,2]
[401486924,1768263041913,-500.0,0.00014247,2]
[401486925,1768263041923,-1000.0,0.00014247,2]
[401486926,1768263041932,-1000.0,0.00014247,2]
[401486927,1768263041941,-1000.0,0.00014247,2]
[401486928,1768263041950,-1000.0,0.00014247,2]
[401486929,1768263041959,-250.0,0.00014247,2]
[401486930,1768263041968,-1000.0,0.00014247,2]
[401486931,1768263041978,-1000.0,0.00014247,2]
[401486932,1768263041987,-1000.0,0.00014247,2]
[401486933,1768263041996,-1000.0,0.00014247,2]
[401486934,1768263042006,-1000.0,0.00014247,2]
[401486935,1768263042015,-1002.56553603,0.00014247,2]
[401486936,1768263042025,-1000.0,0.00014247,2]
[401486937,1768263042035,-1000.0,0.00014247,2]
[401486938,1768263042044,-1014.57441802,0.00014247,2]
[401486939,1768263042054,-1002.38932755,0.00014247,2]
[401486940,1768263042063,-1000.0,0.00014247,2]
[401486941,1768263042072,-1000.0,0.00014247,2]
[401486942,1768263042082,-1000.0,0.00014247,2]
[401486943,1768263042091,-1000.0,0.00014247,2]
[401486944,1768263042101,-1000.0,0.00014247,2]
[401486945,1768263042110,-276.29994154,0.00014247,2]
[401486946,1768263042119,-1000.0,0.00014247,2]
[401486947,1768263042129,-1029.61129365,0.00014247,2]
[401486948,1768263042138,-1000.0,0.00014247,2]
[401486949,1768263042147,-1000.0,0.00014247,2]
[401486950,1768263042157,-1138.41119879,0.00014247,2]
[401486951,1768263042166,-1000.0,0.00014247,2]
[401486952,1768263042175,-1000.0,0.00014247,2]
[401486953,1768263042185,-1000.0,0.00014247,2]
[401486954,1768263042194,-1006.00253074,0.00014247,2]
[401486955,1768263042204,-1000.0,0.00014247,2]
[401486956,1768263042213,-1000.0,0.00014247,2]
[401486957,1768263042223,-646.68328603,0.00014247,2]
[401486958,1768263042231,-1000.0,0.00014247,2]
[401486959,1768263042240,-346.05518507,0.00014247,2]
[401486960,1768263042249,-1000.0,0.00014247,2]
[401486961,1768263042258,-1000.0,0.00014247,2]
[401486962,1768263042267,-1000.0,0.00014247,2]
[401486963,1768263042276,-1000.0,0.00014247,2]
[401486964,1768263042286,-1000.0,0.00014247,2]
[401486965,1768263042295,-155.72124395,0.00014368,2]
[401486966,1768263042304,-1500.0,0.00014368,2]
[401486967,1768263042313,-677.20505665,0.00014368,2]
[401486968,1768263042323,-985.3091038,0.00014368,2]
[401486969,1768263042336,-1500.0,0.00014368,2]
[401486970,1768263042345,-1500.0,0.00014368,2]
[401486971,1768263042354,-1500.0,0.00014368,2]
[401486972,1768263042364,-1500.0,0.00014368,2]
[401486973,1768263042373,-1500.0,0.00014368,2]
[401486974,1768263042382,-1603.18109463,0.00014368,2]
[401486975,1768263042391,-1121.35319303,0.00014368,2]
[401486976,1768263042400,-504.59320272,0.00014368,2]
[401486977,1768263042409,-1500.0,0.00014368,2]
[401486978,1768263042421,-763.96834089,0.00014368,2]
[401486979,1768263042430,-1500.0,0.00014368,2]
[401486980,1768263042439,-1500.0,0.00014368,2]
[401486981,1768263042448,-1500.0,0.00014368,2]
[401486982,1768263042457,-500.0,0.00014368,2]
[401486983,1768263042467,-1500.0,0.00014368,2]
[401486984,1768263042476,-1502.33157316,0.00014368,2]
[401486985,1768263042485,-1500.0,0.00014368,2]
[401486986,1768263042495,-1500.0,0.00014368,2]
[401486987,1768263042504,-1000.0,0.00014368,2]
[401486988,1768263042514,-1500.0,0.00014368,2]
[401486989,1768263042523,-1500.0,0.00014368,2]
[401486990,1768263042532,-1000.0,0.00014368,2]
[401486991,1768263042541,-1500.0,0.00014368,2]
[401486992,1768263042550,-1500.0,0.00014368,2]
[401486993,1768263042559,-294.40566773,0.0001451,2]
[401486994,1768263042569,-5000.0,0.0001451,2]
[401486995,1768263042578,-411.45144145,0.00014554,2]
[401486996,1768263042587,-500.0,0.00014563,2]
[401486997,1768263042596,-500.0,0.00014563,2]
[401486998,1768263042605,-500.0,0.00014563,2]
[401486999,1768263042615,-500.0,0.00014563,2]
[401487000,1768263042625,-500.0,0.00014563,2]
[401487001,1768263042634,-500.0,0.00014563,2]
[401487002,1768263042644,-500.0,0.00014563,2]
[401487003,1768263042653,-500.0,0.00014563,2]
[401487004,1768263042663,-500.0,0.00014563,2]
[401487005,1768263042672,-500.0,0.00014563,2]
[401487006,1768263042682,-500.0,0.00014563,2]
[401487007,1768263042691,-500.0,0.00014563,2]
[401487008,1768263042700,-364.86992356,0.00014563,2]
[401487009,1768263042710,-100000.0,0.0001459,2]
[401487010,1768263042719,-1000.0,0.00014795,2]
[401487011,1768263042729,-158.4999436,0.00014795,2]
[401487012,1768263042738,-575.12204215,0.00014795,2]
[401487013,1768263042747,-1000.0,0.00014795,2]
[401487014,1768263042756,-1500.0,0.00014795,2]
[401487015,1768263042766,-500.0,0.00014795,2]
[401487016,1768263042775,-1500.0,0.00014795,2]
[401487017,1768263042784,-1500.0,0.00014795,2]
[401487018,1768263042794,-1500.0,0.00014795,2]
[401487019,1768263042803,-1500.0,0.00014795,2]
[401487021,1768263042813,-1500.0,0.00014795,2]
[401487023,1768263042822,-1500.0,0.00014795,2]
[401487025,1768263042831,-500.0,0.00014795,2]
[401487028,1768263042840,-1500.0,0.00014795,2]
[401487029,1768263042850,-1500.0,0.00014795,2]
[401487030,1768263042859,-675.05887209,0.00014795,2]
[401487031,1768263042868,-1500.0,0.00014795,2]
[401487032,1768263042877,-964.41428729,0.00014795,2]
[401487033,1768263042886,-1500.0,0.00014795,2]
[401487034,1768263042895,-1121.58832465,0.00014795,2]
[401487035,1768263042905,-1500.0,0.00014795,2]
[401487036,1768263042914,-1500.0,0.00014795,2]
[401487037,1768263042924,-1500.0,0.00014795,2]
[401487038,1768263042934,-1500.0,0.00014795,2]
[401487039,1768263042943,-1500.0,0.00014795,2]
[401487040,1768263042953,-1500.0,0.00014795,2]
[401487041,1768263042962,-500.0,0.00014795,2]
[401487042,1768263042972,-710.84440634,0.00014795,2]
[401487043,1768263042980,-1500.0,0.00014795,2]
[401487044,1768263042990,-1500.0,0.00014795,2]
[401487045,1768263042999,-1500.0,0.00014795,2]
[401487046,1768263043008,-1500.0,0.00014795,2]
[401487047,1768263043017,-1509.97698878,0.00014795,2]
[401487048,1768263043027,-587.0,0.00014889,2]
[401487049,1768263043036,-151.48350527,0.000149,2]
[401487050,1768263043045,-966.62413338,0.00014916,2]
[401487051,1768263043054,-2000.0,0.00014916,2]
[401487052,1768263043063,-500.0,0.00014916,2]
[401487053,1768263043073,-2000.0,0.00014916,2]
[401487054,1768263043082,-2000.0,0.00014916,2]
[401487055,1768263043091,-2000.0,0.00014916,2]
[401487056,1768263043100,-500.0,0.00014916,2]
[401487057,1768263043202,-2000.0,0.00014916,2]
[401487058,1768263043212,-2000.0,0.00014916,2]
[401487059,1768263043221,-2000.0,0.00014916,2]
[401487060,1768263043230,-2000.0,0.00014916,2]
[401487061,1768263043240,-2000.0,0.00014916,2]
[401487062,1768263043249,-2000.0,0.00014916,2]
[401487063,1768263043258,-1113.36442406,0.00014916,2]
[401487064,1768263043268,-2000.0,0.00014916,2]
[401487065,1768263043277,-1000.0,0.00015342,2]
[401487066,1768263043287,-1000.0,0.00015342,2]
[401487067,1768263043296,-1000.0,0.00015342,2]
[401487068,1768263043305,-2000.0,0.00015342,2]
[401487069,1768263043314,-500.0,0.00015342,2]
[401487070,1768263043324,-500.7387933,0.00015342,2]
[401487071,1768263043335,-1026.41190133,0.00015342,2]
[401487072,1768263043346,-2000.0,0.00015342,2]
[401487073,1768263043355,-737.22168392,0.00015342,2]
[401487074,1768263043364,-507.57819343,0.00015342,2]
[401487075,1768263043373,-2000.0,0.00015342,2]
[401487076,1768263043383,-1648.74912763,0.00015342,2]
[401487077,1768263043393,-2000.0,0.00015342,2]
[401487078,1768263043402,-2000.0,0.00015342,2]
[401487079,1768263043412,-967.72472625,0.00015342,2]
[401487080,1768263043423,-2000.0,0.00015342,2]
[401487081,1768263043432,-2000.0,0.00015342,2]
[401487082,1768263043441,-517.83301398,0.00015342,2]
[401487083,1768263043451,-2000.0,0.00015342,2]
[401487084,1768263043460,-500.0,0.00015342,2]
[401487085,1768263043470,-864.0,0.00015383,2]
[401487086,1768263043479,-2500.0,0.00015464,2]
[401487087,1768263043488,-374.68815725,0.00015464,2]
[401487088,1768263043498,-2500.0,0.00015464,2]
[401487089,1768263043508,-2500.0,0.00015464,2]
[401487090,1768263043517,-2500.0,0.00015464,2]
[401487091,1768263043527,-2500.0,0.00015464,2]
[401487092,1768263043536,-1397.40421659,0.00015464,2]
[401487093,1768263043546,-2500.0,0.00015464,2]
[401487094,1768263043555,-2500.0,0.00015464,2]
[401487095,1768263043564,-2500.0,0.00015464,2]
[401487096,1768263043573,-2500.0,0.00015464,2]
[401487097,1768263043584,-6095.52266173,0.00015817,2]
[401487098,1768263043593,-202.30233565,0.0001589,2]
[401487099,1768263043602,-2500.0,0.0001589,2]
[401487100,1768263043611,-1000.0,0.0001589,2]
[401487101,1768263043622,-1000.0,0.0001589,2]
[401487102,1768263043631,-231.95532903,0.0001589,2]
[401487103,1768263043641,-2500.0,0.0001589,2]
[401487104,1768263043651,-2000.0,0.0001589,2]
[401487105,1768263043660,-1090.98190772,0.0001589,2]
[401487106,1768263043669,-2500.0,0.00016012,2]
[401487107,1768263043678,-500.0,0.00016012,2]
[401487108,1768263043687,-3000.0,0.00016012,2]
[401487109,1768263043697,-3000.0,0.00016012,2]
[401487110,1768263043706,-1664.74090695,0.00016012,2]
[401487111,1768263043715,-3000.0,0.00016012,2]
[401487112,1768263043724,-638.85906661,0.00016012,2]
[401487113,1768263043734,-3000.0,0.00016012,2]
[401487114,1768263043743,-3000.0,0.00016012,2]
[401487115,1768263043753,-823.0,0.00016339,2]
[401487116,1768263043762,-500.0,0.00016438,2]
[401487117,1768263043771,-394.31480662,0.00016438,2]
[401487118,1768263043780,-500.0,0.00016438,2]
[401487119,1768263043790,-3000.0,0.00016438,2]
[401487120,1768263043799,-465.90824987,0.00016554,2]
[401487121,1768263043809,-1000.0,0.0001656,2]
[401487122,1768263043818,-2500.0,0.0001656,2]
[401487123,1768263043827,-3033.9237819,0.0001656,2]
[401487124,1768263043836,-3500.0,0.0001656,2]
[401487125,1768263043846,-228.70879455,0.00016744,7]
[401487126,1768263043855,-1000.0,0.00016921,2]
[401487127,1768263043864,-3500.0,0.00016986,2]
[401487128,1768263043873,-1000.0,0.00017108,2]
[401487129,1768263043882,-2809.693971,0.00017127,2]
[401487130,1768263043892,-2809.693971,0.00017308,2]
[401487131,1768263043901,-5000.0,0.00017412,2]
[401487132,1768263043911,-1012.33286536,0.00017534,2]
[401487133,1768263043920,-2809.693971,0.0001756,2]
[401487134,1768263043930,-151.0,0.00017729,2]
[401487135,1768263043939,-2809.693971,0.00017836,2]
[401487136,1768263043949,-1152.0,0.0001793,2]
[401487137,1768263043958,-151.0,0.00018159,2]
[401487138,1768263043968,-2809.693971,0.00018175,2]
[401487139,1768263043977,-2809.693971,0.00018462,2]
[401487140,1768263043987,-520.3650583,0.00018554,2]
[401487141,1768263043997,-151.0,0.00018589,2]
[401487142,1768263044015,-1000.0,0.00018614,2]
[401487143,1768263044035,-244.0,0.00018614,2]
[401487144,1768263044054,-728.0,0.0001867,2]
[401487145,1768263044074,-728.0,0.0001867,2]
[401487147,1768263044093,-716.0,0.0001867,2]
[401487149,1768263044102,-2809.693971,0.00018763,2]
[401487151,1768263044112,-303.1000161,0.000189,2]
[401487152,1768263044121,-303.10001603,0.000189,2]
[401487153,1768263044130,-496.47127164,0.00018952,2]
[401487154,1768263044140,-181.08010149,0.00018952,2]
[401487155,1768263044150,-187.78006525,0.00018952,2]
[401487156,1768263044160,-194.72792766,0.00018952,2]
[401487157,1768263044169,-201.93286099,0.00018952,2]
[401487158,1768263044179,-209.40437684,0.00018952,2]
[401487159,1768263044191,-217.15233878,0.00018952,2]
[401487160,1768263044201,-2398.4119403,0.00018952,2]
[401487161,1768263044211,-225.18697532,0.00018952,2]
[401487162,1768263044222,-233.51889341,0.00018952,2]
[401487163,1768263044233,-242.15909246,0.00018952,2]
[401487164,1768263044244,-251.11897888,0.00018952,2]
[401487165,1768263044255,-260.4103811,0.00018952,2]
[401487166,1768263044267,-270.0455652,0.00018952,2]
[401487167,1768263044277,-280.03725112,0.00018952,2]
[401487168,1768263044288,-290.39862941,0.00018952,2]
[401487169,1768263044297,-301.1433787,0.00018952,2]
[401487170,1768263044308,-300.0,0.00018999,2]
[401487171,1768263044318,-151.0,0.00019019,2]
[401487172,1768263044328,-303.10001603,0.00019089,2]
[401487173,1768263044343,-2809.693971,0.00019177,2]
[401487174,1768263044352,-352.88,0.00019178,2]
[401487175,1768263044364,-19667.27,0.000192,2]
[401487176,1768263044375,-6095.52266173,0.00019269,2]
[401487177,1768263044385,-2809.693971,0.00019276,2]
[401487178,1768263044395,-303.10001603,0.00019278,2]
[401487179,1768263044405,-728.0,0.0001931,2]
[401487180,1768263044415,-728.0,0.0001931,2]
[401487181,1768263044425,-728.0,0.0001934,2]
[401487182,1768263044435,-151.0,0.00019449,2]
[401487183,1768263044444,-303.10001603,0.00019467,2]
[401487184,1768263044455,-514.84070869,0.000195,2]
[401487185,1768263044466,-2487.15318209,0.000195,2]
[401487186,1768263044476,-2168.50147618,0.00019551,2]
[401487187,1768263044486,-728.0,0.00019579,2]
[401487188,1768263044496,-162.0,0.0001959,2]
[401487189,1768263044506,-2809.6939715,0.0001961,2]
[401487190,1768263044516,-728.0,0.0001963,2]
[401487191,1768263044526,-303.10001603,0.00019656,2]
[401487192,1768263044536,-1613.0,0.00019676,2]
[401487193,1768263044547,-728.0,0.00019709,2]
[401487194,1768263044556,-250.0,0.00019726,2]
[401487195,1768263044566,-628.0,0.00019731,2]
[401487196,1768263044575,-1366.0,0.00019731,2]
[401487197,1768263044585,-2147.0,0.00019731,2]
[401487198,1768263044594,-715.0,0.00019731,2]
[401487199,1768263044604,-197.827,0.00019731,2]
[401487200,1768263044614,-417.0,0.00019731,2]
[401487201,1768263044623,-417.0,0.00019731,2]
[401487202,1768263044633,-13386.5767573,0.00019749,2]
[401487203,1768263044642,-349.0,0.000198,2]
[401487204,1768263044652,-728.0,0.0001984,2]
[401487205,1768263044661,-454.65002405,0.00019845,4]
[401487206,1768263044670,-70513.5382383,0.00019849,2]
[401487207,1768263044680,-620.1289145,0.00019849,2]
[401487208,1768263044689,-2529.8575846,0.00019849,2]
[401487209,1768263044699,-275.077279,0.00019849,2]
[401487210,1768263044709,-11667.3880676,0.00019849,2]
[401487211,1768263044719,-630.8957364,0.00019849,2]
[401487212,1768263044729,-728.0,0.00019858,2]
[401487213,1768263044739,-268.88693948,0.00019872,2]
[401487214,1768263044749,-478.01977307,0.00019876,2]
[401487215,1768263044759,-1912.07909227,0.00019876,2]
[401487216,1768263044768,-242.8783614,0.00019876,2]
[401487217,1768263044777,-971.51344561,0.00019876,2]
[401487218,1768263044786,-2185.90525262,0.00019876,2]
[401487219,1768263044795,-3886.05378244,0.00019876,2]
[401487220,1768263044804,-6071.95903506,0.00019876,2]
[401487221,1768263044814,-4297.87577964,0.00019876,2]
[401487222,1768263044823,-634.37185337,0.00019876,2]
[401487223,1768263044832,-2537.48741347,0.00019876,2]
[401487224,1768263044841,-8734.87738947,0.00019876,2]
[401487225,1768263044851,-5703.63733362,0.00019876,2]
[401487226,1768263044861,-172465.868485,0.00019876,2]
[401487227,1768263044870,-151.0,0.00019879,2]
[401487228,1768263044879,-728.0,0.00019981,2]
[401487229,1768263044889,-2000.0,0.00019998,7]
[401487230,1768263044898,-1896.73292142,0.00019999,7]
[401487231,1768263044908,-1327.0,0.0002,2]
[401487232,1768263044918,-159.91,0.0002,2]
[401487233,1768263044928,-156.51,0.0002,2]
[401487234,1768263044937,-1860.0,0.0002,7]
[401487235,1768263044947,-10743.17513017,0.0002,2]
[401487236,1768263044957,-205.35048027,0.0002,2]
[401487237,1768263044967,-3168.12,0.0002,2]
[401487238,1768263044977,-170.678359,0.0002,2]
[401487239,1768263044987,-170.678359,0.0002,2]
[401487240,1768263044998,-170.678359,0.0002,2]
[401487241,1768263045008,-170.678359,0.0002,2]
[401487242,1768263045018,-454.65002405,0.00020034,4]
[401487243,1768263045029,-533.88981491,0.00020048,2]
[401487244,1768263045038,-2579.17784983,0.00020048,2]
[401487245,1768263045049,-269.0,0.0002009,2]
[401487247,1768263045058,-728.0,0.00020156,2]
[401487249,1768263045068,-728.0,0.0002016,2]
[401487251,1768263045077,-728.0,0.00020204,2]
[401487253,1768263045087,-459.0,0.00020219,2]
[401487255,1768263045096,-606.08634527,0.00020223,4]
[401487257,1768263045105,-350.0,0.00020274,2]
[401487258,1768263045114,-151.0,0.0002031,2]
[401487260,1768263045123,-728.0,0.00020363,2]
[401487262,1768263045133,-316.13882024,0.00020404,23]
[401487264,1768263045142,-728.0,0.0002041,2]
[401487265,1768263045151,-728.0,0.00020445,2]
[401487266,1768263045161,-1000.0,0.00020475,2]
[401487267,1768263045171,-492.0,0.00020475,2]
[401487268,1768263045182,-151.0,0.00020544,2]
[401487269,1768263045191,-1393.247444,0.00020548,2]
[401487270,1768263045201,-728.0,0.00020549,2]
[401487271,1768263045212,-574.82186673,0.00020554,2]
[401487272,1768263045222,-553.64373807,0.00020596,2]
[401487273,1768263045232,-2674.60743027,0.00020596,2]
[401487274,1768263045241,-728.0,0.0002072,2]
[401487275,1768263045251,-728.0,0.0002072,2]
[401487276,1768263045260,-728.0,0.0002073,2]
[401487277,1768263045270,-151.0,0.0002074,2]
[401487278,1768263045280,-728.0,0.00020765,2]
[401487279,1768263045289,-728.0,0.00020796,2]
[401487280,1768263045299,-255.28085597,0.000208,3]
[401487281,1768263045308,-316.13882024,0.0002081,24]
[401487282,1768263045317,-450.0,0.00020822,2]
[401487283,1768263045326,-728.0,0.0002087,2]
[401487284,1768263045335,-728.0,0.0002087,2]
[401487285,1768263045347,-728.0,0.0002087,2]
[401487286,1768263045358,-300.0,0.00020982,2]
[401487287,1768263045367,-2000.0,0.00020999,7]
[401487288,1768263045376,-158.36,0.00021,2]
[401487289,1768263045387,-472.63846467,0.00021,14]
[401487290,1768263045396,-3000.0,0.00021,2]
[401487291,1768263045406,-3000.0,0.0002101,2]
[401487292,1768263045415,-3000.0,0.0002102,2]
[401487293,1768263045427,-3000.0,0.0002103,2]
[401487294,1768263045436,-3000.0,0.0002104,2]
[401487295,1768263045445,-3000.0,0.0002105,2]
[401487296,1768263045454,-3000.0,0.0002106,2]
[401487297,1768263045463,-3000.0,0.0002107,2]
[401487298,1768263045473,-3000.0,0.0002108,2]
[401487299,1768263045482,-728.0,0.00021085,2]
[401487300,1768263045492,-3000.0,0.0002109,2]
[401487301,1768263045502,-3000.0,0.000211,2]
[401487302,1768263045512,-19667.27,0.000211,2]
[401487303,1768263045522,-3000.0,0.0002111,2]
[401487304,1768263045531,-3000.0,0.0002112,2]
[401487305,1768263045540,-3000.0,0.0002113,2]
[401487306,1768263045550,-3000.0,0.0002114,2]
[401487307,1768263045559,-574.12855637,0.00021144,2]
[401487308,1768263045653,-2773.56790519,0.00021144,2]
[401487309,1768263045663,-3000.0,0.0002115,2]
[401487310,1768263045672,-3000.0,0.0002116,2]
[401487311,1768263045681,-5786.360931,0.0002117,2]
[401487312,1768263045690,-151.0,0.0002117,2]
[401487313,1768263045699,-316.13882024,0.00021215,26]
[401487314,1768263045709,-1000.0,0.00021253,5]